Cogmind - Beta 16 @@@ ROGUE MODE // 2025.11.11 @ 17:13:09 Player: Reflectatory Result: Core destroyed Performance ------------- Evolutions (1) 500 Regions Visited (3) 600 Robots Destroyed (61) 305 Value Destroyed (1524) 1524 Prototype IDs (4) 80 Alien Tech Used (0) 0 Bonus (352) 352 TOTAL SCORE: 3361 Bonus ------- High Alert Combat Kills 110 Follower Combat Kills 263 Friendly Fire -21 Cogmind --------- Core Integrity 0/400 Matter 156/300 Energy 220/265 System Corruption 10% Temperature Critical (755) Movement Treading (160) Location -9/Storage Parts ------- > --- POWER (1) -------- Reinforced Ion Engine > --- PROPULSION (4) --- Light Treads Light Treads Improved Treads > --- UTILITY (2) ------ (None) > --- WEAPON (2) ------- Beam Rifle Beam Rifle > --- INVENTORY (5) ---- Light Armor Plating Faulty Improved EM Shotgun Peak State ------------ > --- POWER ------------ Deuterium Engine > --- PROPULSION ------- Improved Treads Improved Treads Improved Treads Improved Treads > --- UTILITY ---------- Improved Targeting Computer Light Armor Plating > --- WEAPON ----------- Shotgun Shotgun > --- INVENTORY -------- Deuterium Engine Improved Treads Light Armor Plating Spread Laser Spread Laser [Rating: 19] Favorites ----------- Power Deuterium Engine Engine Deuterium Engine Propulsion Improved Treads Treads Improved Treads Leg Aluminum Leg Wheel Wheel Utility Light Armor Plating Device Structural Scanner Storage Small Storage Unit Processor Improved Targeting Computer Protection Light Armor Plating Weapon Shotgun Energy Gun Spread Laser Ballistic Gun Shotgun Build | -11 -10 -9 -9 ------- Run | Yrd Mat Mat Sto Slots Evolved 2 | . . 2 . Power . | . . . . Propulsion 2 | . . 2 . Utility . | . . . . Weapon . | . . . . Parts Attached 43 | 5 5 19 14 Power 5 | 1 . 2 2 Engine 5 | 1 . 2 2 Core . | . . . . Reactor . | . . . . Propulsion 15 | 2 . 11 2 Treads 11 | . . 9 2 Leg 2 | . . 2 . Wheel 2 | 2 . . . Hover . | . . . . Flight . | . . . . Utility 12 | . 3 4 5 Device 2 | . . . 2 Storage 1 | . 1 . . Processor 3 | . 2 1 . Hackware . | . . . . Protection 6 | . . 3 3 Artifact . | . . . . Weapon 11 | 2 2 2 5 Energy Gun 7 | 1 . 1 5 Energy Cannon . | . . . . Ballistic Gun 4 | 1 2 1 . Ballistic Cannon . | . . . . Launcher . | . . . . Special Weapon . | . . . . Impact Weapon . | . . . . Slashing Weapon . | . . . . Piercing Weapon . | . . . . Special Melee Weapon . | . . . . Unidentified Prototypes . | . . . . Parts Lost 16 | . . 4 12 Power . | . . . . Propulsion 5 | . . 1 4 Utility 5 | . . 1 4 Weapon 6 | . . 2 4 Highest Loss Streak 5 | . . 2 5 To Critical Strikes 1 | . . . 1 Average Backups 4 | 3 5 4 3 Power 1 | . 1 1 . Propulsion . | 1 2 . . Utility . | . . 1 . Weapon 1 | . 1 1 1 Tool/Special . | . . . . Unused Backups 5 | . 1 3 1 Power 1 | . . 1 . Propulsion . | . . . . Utility 1 | . . 1 . Weapon 3 | . 1 1 1 Tool/Special . | . . . . Average Slot Usage (%) 97 | . 98 99 92 Engine 11 | . 14 11 10 Treads 28 | . . 30 40 Leg 4 | . . 9 . Wheel 7 | . 28 4 . Device 2 | . . . 9 Processor 10 | . 22 11 . Protection 8 | . . 10 9 Energy Gun 8 | . 4 3 18 Ballistic Gun 14 | . 23 18 2 Peak Build Rating 19 | 5 10 19 18 Average Rating 14 | 3 9 16 14 On Entrance 8 | . 5 10 18 Avg Prop Armor Cover (%) 8 | . . 8 . Naked Turns 2 | . . . 2 Heaviest Build 22 | 9 14 22 20 Greatest Support 92 | 26 26 92 92 Greatest Overweight (x) . | . . . . Average Overweight (x) . | . . . . Largest Inventory Capacity 8 | 5 8 5 5 Average Capacity 5 | 5 5 5 5 Most Carried 5 | 5 5 5 5 Average Carried 4 | 3 4 4 3 Final Capacity 5 | 5 5 5 5 Final Carried 5 | 5 5 5 2 Class Distribution -------------------- 81% | Mutant 18% | Scavenger-Mutant Dominant Class ---------------- Mutant | -10/Materials Mutant | -9/Materials Scavenger-Mutant | -9/Storage Resources | -11 -10 -9 -9 ----------- Run | Yrd Mat Mat Sto Matter Collected 1371 | 204 196 648 323 Remotely . | . . . . Salvage Created 1782 | . 225 845 712 Parts 118 | . 9 73 36 Haulers Intercepted 1 | . . 1 . Recyclers Shooed 1 | . . 1 . Parts Field Recycled . | . . . . Retrieved Matter . | . . . . Parts Self-Destructed . | . . . . Prevented . | . . . . Parts Restored . | . . . . Kills | -11 -10 -9 -9 ------- Run | Yrd Mat Mat Sto Combat Hostiles Destroyed 55 | . 7 31 17 Guns 54 | . 7 31 16 Classes Destroyed 9 | . 3 2 4 Worker 1 | . . . 1 Hauler 1 | . . 1 . Mechanic 1 | . . . 1 Watcher 3 | . 1 1 1 Swarmer 24 | . 3 18 3 Grunt 18 | . 4 6 8 Brawler 2 | . . . 2 Duelist 1 | . . . 1 Sentry 10 | . . 7 3 Best Kill Streak 10 | . 4 10 8 Combat Bots Only 9 | . 3 9 7 Max Kills in Single Turn 2 | . 1 2 1 Gunslinging 1 | . . 1 . Exploded . | . . . . Melee . | . . . . Uniques/NPCs Destroyed . | . . . . Combat | -11 -10 -9 -9 -------- Run | Yrd Mat Mat Sto Hostile Shots Fired 249 | . 26 108 115 Missed 37 | . 4 19 14 Hits 212 | . 22 89 101 Melee 10 | . . . 10 Projectile 202 | . 22 89 91 Critical Strikes 6 | . . 1 5 Damage Taken 2710 | . 213 977 1520 Core 488 | . 62 100 326 Absorbed by Shields . | . . . . Core Remaining (%) 87 | 100 75 . . Volleys Fired 127 | . 21 58 48 Largest 2 | . 2 2 2 Hottest 130 | . 60 88 130 Shots Fired 248 | . 42 115 91 Gun 248 | . 42 115 91 Cannon . | . . . . Launcher . | . . . . Special . | . . . . Kinetic 141 | . 34 105 2 Thermal 99 | . . 10 89 Explosive . | . . . . Electromagnetic 8 | . 8 . . Robot Hit Streak 11 | . 6 11 10 Robot Miss Streak 7 | . 4 6 7 Penetration Max . | . . . . Secondary Targets 8 | . . 4 4 Max Gunslinging Chain 1 | . . 1 1 Shots Hit Robots 182 | . 27 88 67 Core Hits 130 | . 12 58 60 Critical Kills . | . . . . Critical Parts Destroyed 1 | . . 1 . Critical Strikes 4 | . . 1 3 Burn 3 | . . . 3 Destroy 1 | . . 1 . Melee Attacks . | . . . . Impact . | . . . . Slashing . | . . . . Piercing . | . . . . Sneak Attacks . | . . . . Combat Hostiles . | . . . . Follow-up Attacks . | . . . . Damage Inflicted 2688 | . 395 1362 931 Guns 2681 | . 395 1362 924 Cannons . | . . . . Explosions . | . . . . Melee . | . . . . Ramming 7 | . . . 7 Kinetic 1581 | . 332 1228 21 Thermal 1037 | . . 134 903 Explosive . | . . . . Electromagnetic 63 | . 63 . . Impact . | . . . . Slashing . | . . . . Piercing . | . . . . Highest Corruption 10 | . . . 10 Average Corruption 7 | . . . 7 Corruption Purged . | . . . . Corruption Blocked . | . . . . Effects 1 | . . . 1 Heat Flow Errors 1 | . . . 1 Overload Shots . | . . . . Overflow Damage . | . . . . Projectiles . | . . . . Explosions . | . . . . Melee . | . . . . Knockbacks . | . . . . Impact . | . . . . Kinetic . | . . . . Secondary . | . . . . Self-Inflicted Damage . | . . . . Shots . | . . . . Rammed 2 | . . . 2 Targets Rammed 3 | . . . 3 Kicked . | . . . . Crushed 1 | . . . 1 Highest Temperature 755 | . 1 116 755 Average Temperature 153 | . 1 37 192 Received Heat Transfer 951 | . 72 258 621 Effects 23 | . . . 23 Shutdowns 5 | . . . 5 Energy Bleed 2 | . . . 2 Interference 2 | . . . 2 Matter Decay 4 | . . . 4 Short Circuit 2 | . . . 2 Damage (minor) 2 | . . . 2 Damage (major) 4 | . . . 4 Damage (core) 2 | . . . 2 Siege Activations . | . . . . Martial Activations . | . . . . Shielding Activations . | . . . . Robots Disrupted . | . . . . Combat Hostiles . | . . . . Robots Corrupted . | . . . . Combat Hostiles . | . . . . Parts Fried . | . . . . Impact Corruptions . | . . . . Robots Melted 1 | . . . 1 Combat Hostiles 1 | . . . 1 Parts Melted 6 | . . . 6 Heat Transferred 2169 | . . 170 1999 Parts Sabotaged . | . . . . Parts Stolen . | . . . . Parts Stripped . | . . . . Power Chain Reactions . | . . . . Alert | -11 -10 -9 -9 ------- Run | Yrd Mat Mat Sto Maximum Alert Level 2 | . . 2 2 Low Security (%) 32 | 100 100 11 27 Level 1 45 | . . 72 23 Level 2 21 | . . 15 48 Level 3 . | . . . . Level 4 . | . . . . Level 5 . | . . . . High Security . | . . . . Max Security . | . . . . Peak Influence 504 | . 77 452 504 Initial 155 | . . 16 155 Average 257 | . 40 305 310 Influence Increases 1827 | . 199 859 769 Destroy 0b10 Robot/C 1280 | . 140 620 520 Destroy 0b10 Robot/NC 30 | . 5 10 15 Destroy Leader 288 | . 22 154 112 Allied During Kill 42 | . . . 42 Successful Hack 21 | . 16 . 5 Destroy Structure 1 | . 1 . . Partial Spotted 45 | . . 30 15 Lose Combat Pursuer 120 | . 15 45 60 Influence Decreases 1341 | . 158 531 652 Entered New Map 239 | . . 25 214 Time Decay 902 | . 158 466 278 Lost Part 160 | . . 40 120 Lost Ally 40 | . . . 40 Squads Dispatched 11 | . 1 2 8 Investigation 3 | . 1 1 1 Extermination . | . . . . Reinforcement 2 | . . 1 1 Assault 3 | . . . 3 Garrison 3 | . . . 3 Intercept . | . . . . Searches Triggered . | . . . . Construction Impeded . | . . . . Haulers Reinforced . | . . . . Active Scanning Responses . | . . . . Cargo Convoy Interrupts . | . . . . Stealth | -11 -10 -9 -9 --------- Run | Yrd Mat Mat Sto Distress Signals 8 | . 1 6 1 Communications Jammed . | . . . . Distress Signals . | . . . . Times Spotted 86 | . 12 38 36 Peak Tracking Total 8 | . 4 7 8 Tactical Retreats 6 | . 1 2 3 Traps | -11 -10 -9 -9 ------- Run | Yrd Mat Mat Sto Traps Triggered 6 | . . . 6 Indirectly . | . . . . Trap Hack Attempts . | . . . . Triggered . | . . . . Disarmed . | . . . . Reprogrammed . | . . . . Reused . | . . . . Traps Extracted . | . . . . Installed . | . . . . Triggered . | . . . . Machines | -11 -10 -9 -9 ---------- Run | Yrd Mat Mat Sto Machines Disabled . | . . . . Max in Single Turn . | . . . . Machines Repaired . | . . . . Machines Dismantled . | . . . . Machines Sabotaged . | . . . . Overloaded Fab Kills . | . . . . Hacking | -11 -10 -9 -9 --------- Run | Yrd Mat Mat Sto Machines Accessed 12 | . 4 4 4 Terminals 12 | . 4 4 4 Fabricators . | . . . . Repair Stations . | . . . . Recycling Units . | . . . . Scanalyzers . | . . . . Garrison Access . | . . . . Total Hacks 40 | . 15 13 12 Successful 18 | . 8 5 5 Failed 20 | . 6 7 7 Catastrophic 8 | . 2 3 3 Database Lockouts 2 | . 1 1 . Manual 34 | . 13 14 7 Terminals 40 | . 15 13 12 Fabricators . | . . . . Repair Stations . | . . . . Recycling Units . | . . . . Scanalyzers . | . . . . Garrison Access . | . . . . Terminal Hacks 7 | . 4 1 2 Prototype ID Bank 2 | . 1 1 . Open Door 1 | . . . 1 Branch Access Points 1 | . 1 . . Terminal Index 1 | . 1 . . Locate Traps 1 | . . . 1 Hauler Manifests 1 | . 1 . . Fabricator Hacks . | . . . . Repair Station Hacks . | . . . . Recycling Unit Hacks . | . . . . Scanalyzer . | . . . . Garrison Access Hacks . | . . . . Unauthorized Hacks 11 | . 4 4 3 Terminals 11 | . 4 4 3 Botnet 11 | . 4 4 3 Fabricators . | . . . . Repair Stations . | . . . . Recycling Units . | . . . . Scanalyzers . | . . . . Garrison Access . | . . . . Data Cores Recovered . | . . . . Used . | . . . . Hacking Detections 11 | . 4 4 3 Full Trace Events 3 | . 1 1 1 Feedback Events . | . . . . Feedback Blocked . | . . . . Robot Schematics Acquired . | . . . . Robots Built . | . . . . Authchips . | . . . . Time . | . . . . Total Robot Build Rating . | . . . . Part Schematics Acquired . | . . . . Parts Built . | . . . . Authchips . | . . . . Time . | . . . . Total Part Build Rating . | . . . . Part Studies Acquired . | . . . . Parts Repaired . | . . . . Time . | . . . . Parts Recycled . | . . . . Recycled Matter . | . . . . Retrieved Matter . | . . . . Retrieved Components . | . . . . Parts Scanalyzed . | . . . . Part Schematics Acquired . | . . . . Parts Damaged . | . . . . Bothacking | -11 -10 -9 -9 ------------ Run | Yrd Mat Mat Sto Used RIF Installer . | . . . . Robots Hacked . | . . . . Non-combat . | . . . . Combat . | . . . . Robot Hacks Applied . | . . . . Relay Couplers Released . | . . . . Fabnet Peak Effective % . | . . . . Robots Rewired . | . . . . Allies Hacked . | . . . . Hacks Repelled . | . . . . Allies | -11 -10 -9 -9 -------- Run | Yrd Mat Mat Sto Total Allies 2 | . . . 2 Largest Group 2 | . . . 2 Highest-Rated Group 62 | . . . 62 Highest-Rated Ally 31 | . . . 31 Total Orders . | . . . . Ally Attacks 31 | . . . 31 Total Damage 467 | . . . 467 Kills 9 | . . . 9 Allies Corrupted . | . . . . Allies Melted . | . . . . Intel | -11 -10 -9 -9 ------- Run | Yrd Mat Mat Sto Active Infowar (turns) 802 | . 257 46 499 Optics 303 | . 257 46 . Structural 499 | . . . 499 Robot Analysis Total . | . . . . Derelict Logs Recovered . | . . . . Drone Launches . | . . . . Drone Recoveries . | . . . . Exploration | -11 -10 -9 -9 ------------- Run | Yrd Mat Mat Sto Turns Passed 2191 | 48 356 1182 605 Spaces Moved 952 | 40 203 460 249 Core 3 | 1 . . 2 Treads 556 | . . 309 247 Legs 2 | . . 2 . Wheels 391 | 39 203 149 . Hover . | . . . . Flight . | . . . . Fastest Speed 50 | 50 90 90 50 Average Speed 130 | 90 90 137 159 Slowest Speed 160 | 100 90 160 160 Overloaded Moves . | . . . . Propulsion Burnouts . | . . . . Robots Hopped . | . . . . Potential Cave-ins . | . . . . Cave-ins Triggered . | . . . . Exploration Rate (%) 33 | 3 40 46 44 Regions Visited 3 Branch Regions 1 Pre-discovered Areas . | . . . . Known Exits Taken . | . . . . Unknown Exits Taken 3 | 1 1 1 . Scrap Searched . | . . . . Spaces Dug . | . . . . Terrain Destroyed . | . . . . Melee . | . . . . Projectile . | . . . . AOE . | . . . . Terrain Rammed . | . . . . Walls Destroyed . | . . . . Machines Disabled . | . . . . Actions | -11 -10 -9 -9 --------- Run | Yrd Mat Mat Sto Total 1637 | 49 334 899 355 Wait 455 | . 102 337 16 Move 949 | 39 202 459 249 Hop . | . . . . Pick Up 20 | 5 2 9 4 Fast Attach 28 | 5 1 2 20 Attach 11 | . 1 4 6 Detach . | . . . . Swap 24 | . 3 16 5 Drop 19 | . 2 14 3 Fire 127 | . 21 58 48 Melee . | . . . . Ram . | . . . . Kick . | . . . . Crush 3 | . . . 3 Escape Stasis . | . . . . Rewire 1 | . . . 1 Trap . | . . . . Miscellaneous . | . . . . Route ------- -11/Scrapyard -10/Materials (discovered 2 exits: *Mat / Min) -9/Materials (discovered 3 exits: [*Min] / *Sto x2) -9/Storage History --------- Turn | Location | Event 12 | -11/Scrapyard | Discovered new exit (range 16) 49 | -11/Scrapyard | Entered Materials 55 | -10/Materials | Identified exit to Mines 310 | -10/Materials | Build established: Mutant 398 | -10/Materials | Discovered new exit (range 6) 399 | -10/Materials | Central database locked down 405 | -10/Materials | Entered another Materials area 405 | -9/Materials | Evolved 2 slots: Propulsion x2 573 | -9/Materials | Destroyed 9 combat bots 616 | -9/Materials | Central database locked down 885 | -9/Materials | Discovered new exit (range 8) 1118 | -9/Materials | Discovered new exit (range 15) 1495 | -9/Materials | Discovered new exit (range 15) 1587 | -9/Materials | Entered Storage 1694 | -9/Storage | Met a pair of Derelict thieves 1847 | -9/Storage | Garrison activated, responded to threat 1889 | -9/Storage | Core integrity fell below 50% 1931 | -9/Storage | Destroyed 7 combat bots 1940 | -9/Storage | Lost 5 parts (3n2u) 1987 | -9/Storage | First assault squad dispatched 2170 | -9/Storage | Build established: Scavenger-Mutant 2175 | -9/Storage | Core integrity fell below 20% 2188 | -9/Storage | System corruption reached 10% 2193 | -9/Storage | Core destroyed Last Messages --------------- Power failure, Rnf. Ion Engine shutdown. Critical hit (Smash). Particle Gun destroyed. Lgt. Armor Plating destroyed. System corrupted by crushing effect (+5). System corrupted by crushing effect (+1). Overheating: System interference. Structural Scanner temporarily disabled. Overheating: Core damaged (-64). System corrupted: Heat flow error (+198). Overheating: Matter decay (-63). Overheating: Matter decay (-24). Structural Scanner destroyed. System corrupted by crushing effect (+4). B-36 Bruiser destroyed. Overheating: Energy bleed (-58). Overheating: Matter decay (-52). Imp. Treads broken. Overheating: Short circuit. Overheating: Core damaged (-40). Map ----- +----------------------------------------------------+ | | | | | | | | | | | | | | | | | | | | | | | ?????????????????????????????????????????????? | | ?????????????????????????????????????????????? | | ?????????????????????????????????????????????? | | ?????????????????????????????????????????????? | | ?????????????????????????????????????????????? | | ?????????????????????????????????????????????? | | ?????????????????????????????????????????????? | | ?????????????????????????????????????????????? | | ???????????### ?????????????????????????? | | ???????????####+####?????????????????????????? | | ??????????? #######????????????????????? | | ?????????????? #######????????????????????? | | ??##### "#T?## #*"]]##????????????????????? | | ??###########?## #mg]]##????????????????????? | | ??## + / "@]##????????????????????? | | ??## # #T#####????????????????????? | | ??## # #######????????????????##### | | ??## # ####???????????????????##### | | ??## # ##????????????????????? | | ??## # ##???????????? ???????? | | ??## / ##??????????? ???? | | ?############### ##??????????? ##????????? | | ?######## # ##????######? ##????????? | | ?## # # ############# ##????????? | | ?## #" =/ ###### "!!### ##???###### | | ?## % +%" %# ^ T # !!### ##???###### | | ?## #" ![# + " ### ##???## | | ?## # #^ #T##??## ##???## | | ?### ## # """ ####??## ##???## " | | ?### ##! # ^""" ######## ##???## "" | | ??## ## # """ ######## ##???## "? | | ??## ## + ##???## "? | | ??## ## ! # ##???## "" | | ??## ## # ##??### | | ??## ## # ! ##??####### | | ??## ######### ###### | | ??## ######### #"T"# #########/######## | | ??## ##?????## #"""# ###### #### | | ??## ##?????##+##### ##??## ######### | +----------------------------------------------------+ Best States ------------- Heat Dissipation 38 Energy Generation 14 Energy Capacity 275 Matter Stores 300 Matter Capacity 300 Sight Range 18 Terrain Scan Density 10 Armor Coverage 225 Evasion (%) 50 Targeting Accuracy 6 Recoil Reduction 4 Item Schematics ----------------- None Robot Schematics ------------------ None Fabricated ------------ Nothing Repaired ---------- Nothing Studied --------- None Alien Tech Used ----------------- None Achievements -------------- None Challenges ------------ None Game ------ Seed BlanketMeleePower Manual? 0 Play Time 00:19:17 Cumulative 49.3 hours Start 2025.11.11 @ 16:54:08 End 2025.11.11 @ 17:13:09 Sessions 1 Manual Loads 0 Difficulty Rogue Special Mode None Game No. 57 Rogue 57 Adventurer 0 Explorer 0 Win Type - Total 1 Types 1/0/0/0/0/0/0/0/0/0 Lore% 46 Gallery% 42 Achievement% 31 Wizard Run 0 Options --------- Layout 1 ASCII 0 Keyboard 0 Movement Mouse Keybinds 0 Fullscreen 1 Font 32/SmallcapsGlow Map View 50x35 Zoom Use 0% Tactical HUD 0 Map Filters NONE Filters NONE Steam 1 RUN: 85f3f8c8-8b01-4824-8d29-f7e76dacd914